[Event "Marshall CC FIDE Premier April 2024"]
[Site "New York"]
[Date "2024.04.13"]
[Round "1.1"]
[White "Ayyappan, Santhosh"]
[Black "Bortnyk, Mykola"]
[Result "1-0"]
[ECO "E48"]
[WhiteElo "1922"]
[BlackElo "2442"]
[Annotator "TA"]
[PlyCount "137"]
[EventDate "2024.02.02"]
[EventType "swiss"]
[EventCountry "USA"]
[SourceTitle "playchess.com"]
[Source "ChessBase"]
[SourceQuality "1"]
[TimeControl "5400+30"]

{[%evp 12,137,-13,-12,19,-9,-8,6,-1,-22,-32,-37,-18,-19,-19,-50,-8,-26,-19,-15,11,11,48,33,14,10,63,0,0,-43,-39,-48,-33,-83,-79,-79,-14,-119,13,27,70,67,107,93,88,71,168,52,156,162,150,153,151,134,360,0,358,305,322,300,306,305,357,351,393,392,385,393,389,384,389,374,386,364,432,430,494,488,471,464,386,512,512,511,552,553,554,552,536,408,545,408,640,640,640,640,721,721,721,594,876,869,840,799,7342,7352,7310,7310,7269,6361,7996,7982,7963,7963,7406,7373,7343,7310,6851,6811,29982,29983,29983,29984,29986,29987,29992,29987]} 1. d4 {[%emt 0:00:03]} Nf6 {[%emt 0:00:14]} 2. c4 {[%emt 0:00:19]} e6 {[%emt 0:00:09]} 3. Nc3 {[%emt 0:00:18]} Bb4 {[%emt 0:00:27]} 4. e3 {[%emt 0:00:44]} O-O {[%emt 0:01:16]} 5. Bd3 {[%emt 0:00:35]} d5 {[%emt 0:00:14]} 6. Nge2 {[%emt 0:03:27]} dxc4 {[%emt 0:04:09]} 7. Bxc4 {[%emt 0:00:09]} b6 {[%emt 0:00:56]} 8. a3 {[%emt 0:02:45]} Be7 {[%emt 0:00:02]} 9. O-O {[%emt 0:00:22]} Bb7 {[%emt 0:00:08] Prevents e4. The position is equal.} 10. Ng3 {[%emt 0:00:46]} c5 {[%emt 0:01:27]} 11. dxc5 {[%emt 0:01:31]} Qc7 {[%emt 0:00:47]} 12. Be2 {[%emt 0:02:27]} Qxc5 {[%emt 0:01:03]} 13. Bf3 {[%emt 0:01:22]} Nc6 {[%emt 0:01:59]} 14. Qc2 {[%emt 0:01:34]} Rac8 {[%emt 0:04:13]} 15. b4 {[%emt 0:06:47]} Qg5 {[%emt 0:00:08]} 16. Bb2 {[%emt 0:02:14]} Qh4 {[%emt 0:03:39]} 17. Rfd1 {[%emt 0:01:28]} Rfd8 {[%emt 0:05:27]} 18. Qe2 {[%emt 0:02:16]} Nd7 {[%emt 0:00:25]} ({Black should play} 18... Bd6 $11) 19. Nce4 {[%emt 0:02:55] White is more active.} (19. Be4 $14) 19... Nde5 $11 {[%emt 0:09:20]} 20. Nd2 {[%emt 0:02:30]} Nd3 {[%emt 0:01:56]} 21. Bc3 {[%emt 0:01:22] Threatens to win with b5.} Ba6 {[%emt 0:00:14][%cal Rd3b4] And now ...Ndxb4! would win.} 22. Bxc6 {[%emt 0:01:18]} (22. b5 $1 $15 Bxb5 23. Be4) 22... Rxc6 $17 {[%emt 0:00:44]} 23. Nf3 {[%emt 0:00:34]} Qh6 {[%emt 0:03:36]} (23... Qc4 $17 24. Bd4 f6) 24. Qd2 {[%emt 0:03:08] [#]} (24. b5 $1 $11 {remains equal.} Rxc3 (24... Bxb5 25. Nd4 $16) 25. bxa6) 24... Rdc8 {[%emt 0:01:20] [#]} (24... Rcc8 $1 $17 {[%cal Od3f2] Hoping for ...Nxf2!} 25. Nd4 Nxf2 26. Kxf2 Qf6+ (26... Qxh2 $2 27. Rh1 $18) (26... e5 27. Kg1 $17) 27. Kg1 e5) 25. b5 $1 $11 {[%emt 0:04:17]} Bxb5 {[%emt 0:16:36]} (25... Rxc3 26. bxa6) 26. Nd4 $1 {[%emt 0:00:26][%csl LRb5,LRc6]} Ba6 {[%emt 0:03:01] White now steadily converts the win.} 27. Nxc6 {[%emt 0:00:09]} Rxc6 {[%emt 0:00:01]} 28. Bb4 {[%emt 0:03:14]} Bf6 {[%emt 0:00:40]} (28... Bh4 $16) 29. Ra2 {[%emt 0:00:04]} ({Better is} 29. Rac1 $18 Rxc1 (29... Nxc1 30. Qd8+ Bxd8 31. Rxd8#) 30. Rxc1) 29... Qh4 {[%emt 0:07:23]} (29... Rc7 $14) 30. Rc2 $16 {[%emt 0:04:37]} Rxc2 {[%emt 0:05:47]} 31. Qxc2 {[%emt 0:00:14]} Nxb4 {[%emt 0:00:16]} 32. Qa4 $40 {[%emt 0:00:34][%cal Ra4e8][%mdl 128] White attacks with force.} g6 $2 {[%emt 0:01:50] [#]} (32... h6 $16 33. Qxb4 (33. axb4 Qc4 $18) 33... Qxb4 34. axb4 Be7) 33. Qe8+ $1 $18 {[%emt 0:03:11]} (33. Qxb4 Qxb4 34. axb4 Bc3 $16) (33. axb4 Qc4 $16) 33... Kg7 {[%emt 0:00:34] White must now prevent ...Nd3.} 34. Rd7 {[%emt 0:00:07]} (34. axb4 Qxb4 35. Qd7 Qb3 $17) 34... Be7 {[%emt 0:01:16]} 35. Qxe7 {[%emt 0:00:24]} Qxe7 {[%emt 0:00:23]} 36. Rxe7 {[%emt 0:00:05][%mdl 4096] Endgame. KRN-KBN} Nc6 {[%emt 0:00:03]} 37. Rc7 {[%emt 0:00:11]} Na5 {[%emt 0:01:12]} 38. Ne4 {[%emt 0:00:45]} Nb7 {[%emt 0:26:35]} 39. Ng5 {[%emt 0:00:22][%csl LRe6,LRf7]} Nd8 {[%emt 0:00:00]} 40. Rd7 {[%emt 0:02:07]} ({But not} 40. Rxa7 Bb7 41. Nf3 Kf6 $18) 40... h6 {[%emt 0:00:00]} 41. Rxd8 {[%emt 0:00:47]} ({Not} 41. Rxa7 Bb7 42. Nf3 Kf8) 41... hxg5 {[%emt 0:00:00] KR-KB} 42. Rd7 {[%emt 0:00:43]} Bc4 {[%emt 0:00:00]} 43. Rxa7 {[%emt 0:00:09]} b5 {[%emt 0:00:00]} 44. Rc7 {[%emt 0:00:10]} Be2 {[%emt 0:00:00]} 45. f3 {[%emt 0:00:35]} Kf6 {[%emt 0:00:00]} 46. Kf2 {[%emt 0:00:06]} Bd3 {[%emt 0:00:00]} 47. Rc3 {[%emt 0:00:09]} Bc4 {[%emt 0:00:00] [#]} 48. a4 $1 {[%emt 0:00:05][%cal Oc3c4] Rxc4! would now be deadly.} Ke7 {[%emt 0:00:00]} 49. axb5 {[%emt 0:00:13]} Bxb5 {[%emt 0:00:00]} 50. Rc5 {[%emt 0:00:06][%csl LRb5,LRg5]} Be8 {[%emt 0:00:00]} 51. Rxg5 {[%emt 0:00:11][%cal Bc5g5,Bg5g3,Bg3h3,Bh3h4,Bh4b4][%mdl 32]} f5 {[%emt 0:06:30]} (51... Kf6 $142) 52. Rg3 {[%emt 0:00:15]} Kf6 {[%emt 0:00:00]} 53. Rh3 {[%emt 0:00:08]} Kg7 {[%emt 0:00:00]} 54. Rh4 {[%emt 0:00:08]} Kf6 {[%emt 0:00:00]} 55. Rb4 {[%emt 0:00:05]} g5 {[%emt 0:00:00][%cal Bg6g5,Bg5g4][%mdl 32]} 56. f4 {[%emt 0:00:33]} Bc6 {[%emt 0:00:00]} 57. g3 {[%emt 0:01:03]} g4 {[%emt 0:00:00]} 58. Ke2 {[%emt 0:00:06]} Ke7 {[%emt 0:00:00]} 59. Kd3 {[%emt 0:00:12]} Kf6 {[%emt 0:00:00]} 60. Kd4 {[%emt 0:00:06]} Be4 {[%emt 0:00:00]} 61. Kc5 {[%emt 0:00:33]} Bf3 {[%emt 0:00:00]} 62. Kd6 {[%emt 0:00:28]} Bd5 {[%emt 0:00:00]} 63. Rb5 {[%emt 0:01:11] White wants to mate with Rxd5.} Bc4 {[%emt 0:00:00]} 64. Re5 {[%emt 0:00:08]} Bb3 {[%emt 0:00:00]} 65. e4 {[%emt 0:00:09][%cal Be3e4,Be4e5][%mdl 32]} Bc4 {[%emt 0:00:00] Prevents Rb5} 66. Rc5 {[%emt 0:00:20] White mates.} Bb3 {[%emt 0:00:00]} 67. e5+ {[%emt 0:00:05]} Kg6 {[%emt 0:00:00]} 68. Ke7 {[%emt 0:00:04]} Bd5 {[%emt 0:00:00]} 69. Rb5 {[%emt 0:00:05] Weighted Error Value: White=0.13 (very precise) /Black=0.40.  Loses game:     	---       	Black=2      Mistake:       	White=4     	Black=6      Inaccurate:     	White=3     	Black=6      OK:         	White=22    	Black=14     Best:        	White=1     	Black=4      Strong:       	White=2     	---        Brilliant:      	White=1     	---} 1-0

[Event "Marshall CC FIDE Premier April 2024"]
[Site "New York"]
[Date "2024.04.13"]
[Round "1.2"]
[White "Huston, Gus"]
[Black "Das, Aditeya"]
[Result "1-0"]
[ECO "D18"]
[WhiteElo "2401"]
[BlackElo "1887"]
[Annotator "TA"]
[PlyCount "75"]
[EventDate "2024.02.02"]
[EventType "swiss"]
[EventCountry "USA"]
[SourceTitle "playchess.com"]
[Source "ChessBase"]
[SourceQuality "1"]
[TimeControl "5400+30"]

{[%evp 14,75,8,29,52,20,39,24,32,21,21,29,30,16,40,12,18,25,12,0,0,0,0,2,10,0,35,31,99,95,131,137,135,123,118,122,124,127,194,198,204,201,193,191,250,233,254,245,259,220,286,267,410,402,377,380,464,456,438,434,29993,29994,29995,29996]} 1. d4 {[%emt 0:00:01]} d5 {[%emt 0:06:07]} 2. c4 {[%emt 0:00:02]} c6 {[%emt 0:00:29]} 3. Nf3 {[%emt 0:00:02]} Nf6 {[%emt 0:00:12]} 4. Nc3 {[%emt 0:00:01]} dxc4 {[%emt 0:00:12]} 5. a4 {[%emt 0:00:02]} Bf5 {[%emt 0:00:15]} 6. e3 {[%emt 0:00:06][%cal Be2e3,Be3e4][%mdl 32]} e6 {[%emt 0:00:52]} 7. Bxc4 {[%emt 0:00:02]} Nbd7 {[%emt 0:00:21]} 8. O-O {[%emt 0:00:20]} Nb6 {[%emt 0:01:09]} 9. Bd3 {[%emt 0:01:22]} a5 {[%emt 0:06:04]} 10. e4 {[%emt 0:01:56]} Bg4 {[%emt 0:00:10] White has an edge.} 11. Be3 {[%emt 0:00:38]} Bb4 {[%emt 0:08:57]} 12. h3 {[%emt 0:07:46]} Bh5 {[%emt 0:08:11]} 13. Qe2 {[%emt 0:03:06]} O-O {[%emt 0:01:06]} 14. Rfd1 {[%emt 0:07:10]} Nfd7 {[%emt 0:05:01]} 15. g4 {[%emt 0:04:02]} Bg6 {[%emt 0:00:06]} 16. Ne5 {[%emt 0:00:02]} Qh4 {[%emt 0:06:04]} 17. Kg2 $36 {[%emt 0:05:01][%mdl 2048] White is more active.} f5 $1 {[%emt 0:08:00]} 18. Nxg6 {[%emt 0:11:09]} hxg6 {[%emt 0:00:42]} 19. f3 {[%emt 0:02:52][%cal Bf2f3,Bf3f4][%mdl 32]} Rae8 {[%emt 0:09:36]} 20. e5 {[%emt 0:02:12]} Nd5 {[%emt 0:02:00]} ({Black should try} 20... Rc8 $14) 21. Nxd5 $16 {[%emt 0:00:08] White now steadily converts the win.} exd5 {[%emt 0:00:17]} 22. f4 {[%emt 0:01:26]} Rf7 {[%emt 0:08:54]} 23. Qf2 {[%emt 0:11:14]} Qxf2+ {[%emt 0:01:57]} 24. Kxf2 {[%emt 0:00:03]} Nf8 {[%emt 0:00:48]} 25. h4 {[%emt 0:04:40] And now h5 would win.} fxg4 {[%emt 0:07:28] [#]} (25... Ne6 $16 26. Kf3 Be7) 26. Kg3 $1 $18 {[%emt 0:02:29]} Rc7 {[%emt 0:01:23]} 27. Rac1 {[%emt 0:00:59]} Rec8 {[%emt 0:00:23]} 28. Be2 {[%emt 0:02:19]} (28. Kxg4 Kf7 29. Bb1 Be7) 28... b6 {[%emt 0:03:22]} (28... Ne6 $142 29. Bxg4 (29. Kxg4 Kf7 $16) 29... Re7) 29. Bxg4 {[%emt 0:00:18]} (29. Kxg4 Ne6 30. Bd3 Kf7) 29... Rd8 {[%emt 0:00:07]} 30. Bf3 {[%emt 0:00:19]} Kf7 {[%emt 0:00:45]} 31. Rc2 {[%emt 0:01:29]} Ke6 {[%emt 0:01:14]} 32. Rf1 {[%emt 0:04:01]} Kf7 {[%emt 0:03:07]} (32... c5 $142 33. h5 Kd7 34. dxc5 (34. Bxd5 $2 cxd4 35. e6+ Kd6 $19) 34... gxh5) 33. h5 {[%emt 0:02:45]} ({But not} 33. Rfc1 c5 34. h5 (34. dxc5 bxc5 35. Bxc5 Rdc8 $16) 34... Rcc8 35. hxg6+ (35. dxc5 d4 $18) 35... Nxg6 $18) 33... gxh5 {[%emt 0:00:45]} 34. f5 {[%emt 0:00:01]} ({Less strong is} 34. Bxh5+ g6 $16) 34... g6 {[%emt 0:00:15]} 35. fxg6+ {[%emt 0:00:12]} Kxg6 {[%emt 0:00:22]} 36. Bxh5+ {[%emt 0:05:51]} Kxh5 {[%emt 0:03:36] [#]} (36... Kg7 $18 37. Bg5 Rb8) 37. Rf6 $1 {[%emt 0:00:11][%cal Rc2h2]} Rg7+ {[%emt 0:00:08]} 38. Kf3 {[%emt 0:00:20] Weighted Error Value: White=0.05 (flawless) /Black=0.41.  Mistake:       	---       	Black=5      Inaccurate:     	White=2     	Black=2      OK:         	White=18    	Black=11     Best:        	White=1     	---        Strong:       	White=1     	Black=1} 1-0

[Event "Marshall CC FIDE Premier April 2024"]
[Site "New York"]
[Date "2024.04.13"]
[Round "1.3"]
[White "Kozower, Ethan"]
[Black "Putnam, Liam"]
[Result "0-1"]
[ECO "B51"]
[WhiteElo "1943"]
[BlackElo "2323"]
[Annotator "RC"]
[PlyCount "104"]
[EventDate "2024.02.02"]
[EventType "swiss"]
[EventCountry "USA"]
[SourceTitle "playchess.com"]
[Source "ChessBase"]
[SourceQuality "1"]
[TimeControl "5400+30"]

1. e4 {[%emt 0:00:00]} c5 {[%emt 0:16:48]} 2. Nf3 {[%emt 0:00:04]} d6 {[%emt 0:00:09]} 3. Bb5+ {[%emt 0:00:44]} Nd7 {[%emt 0:00:43]} 4. c4 {[%emt 0:02:11]} Ngf6 {[%emt 0:02:14]} 5. Nc3 {[%emt 0:00:31]} g6 {[%emt 0:01:59]} 6. O-O {[%emt 0:00:42]} Bg7 {[%emt 0:00:14]} 7. d4 {[%emt 0:08:53]} cxd4 {[%emt 0:00:33]} 8. Nxd4 {[%emt 0:01:19]} O-O {[%emt 0:00:56]} 9. Ba4 {[%emt 0:10:30]} Nc5 {[%emt 0:08:15]} 10. Bc2 {[%emt 0:00:28]} Bd7 {[%emt 0:02:44]} 11. Nf3 {[%emt 0:09:29]} Rc8 {[%emt 0:02:24]} 12. Qe2 {[%emt 0:02:14]} Bg4 {[%emt 0:04:43]} 13. Be3 {[%emt 0:03:55]} Nfd7 {[%emt 0:01:01]} 14. h3 {[%emt 0:01:30]} Bxf3 {[%emt 0:10:52]} 15. Qxf3 {[%emt 0:00:52]} Ne6 {[%emt 0:03:14]} 16. Qe2 {[%emt 0:06:36]} Bxc3 {[%emt 0:04:03]} 17. bxc3 {[%emt 0:00:04]} Qa5 {[%emt 0:00:15]} 18. Rab1 {[%emt 0:04:45]} b6 {[%emt 0:01:51]} 19. Rb4 {[%emt 0:07:55]} Ne5 {[%emt 0:05:55]} 20. Rd1 {[%emt 0:11:38]} Nc6 {[%emt 0:02:52]} 21. Rb3 {[%emt 0:06:06]} Qxa2 {[%emt 0:03:57]} 22. Bc1 {[%emt 0:07:39]} Qa6 {[%emt 0:00:45]} 23. Ra3 {[%emt 0:00:33]} Qb7 {[%emt 0:01:34]} 24. f4 {[%emt 0:00:42]} Na5 {[%emt 0:02:19]} 25. f5 {[%emt 0:00:53]} Ng7 {[%emt 0:00:21]} 26. fxg6 {[%emt 0:02:00]} hxg6 {[%emt 0:00:44]} 27. Bd3 {[%emt 0:00:01]} Qc7 {[%emt 0:00:43]} 28. Ra4 {[%emt 0:04:33]} Nb3 {[%emt 0:00:26]} 29. Qa2 {[%emt 0:01:32]} Nxc1 {[%emt 0:00:12]} 30. Rxc1 {[%emt 0:00:04]} a5 {[%emt 0:00:24]} 31. Ra3 {[%emt 0:00:56]} Qc5+ {[%emt 0:00:23]} 32. Kh1 {[%emt 0:00:02]} Nh5 {[%emt 0:00:20]} 33. Rb3 {[%emt 0:00:36]} Ng3+ {[%emt 0:00:32]} 34. Kh2 {[%emt 0:00:02]} Qe5 {[%emt 0:00:09]} 35. Kg1 {[%emt 0:00:45]} Nxe4 {[%emt 0:00:27]} 36. Re1 {[%emt 0:00:43]} Qg3 {[%emt 0:02:00]} 37. Rxe4 {[%emt 0:01:16]} Qxd3 {[%emt 0:00:06]} 38. Qb1 {[%emt 0:01:54]} Qg3 {[%emt 0:01:57]} 39. Rxb6 {[%emt 0:01:53]} Qxc3 {[%emt 0:00:15]} 40. Rxe7 {[%emt 0:00:41]} Qd4+ {[%emt 0:00:13]} 41. Kh1 {[%emt 0:03:09]} Rxc4 {[%emt 0:00:36]} 42. Rb8 {[%emt 0:00:28]} Rxb8 {[%emt 0:01:01]} 43. Qxb8+ {[%emt 0:00:01]} Kg7 {[%emt 0:00:08]} 44. Re1 {[%emt 0:00:55]} Qd2 {[%emt 0:00:13]} 45. Rf1 {[%emt 0:00:26]} Rc1 {[%emt 0:00:22]} 46. Rxc1 {[%emt 0:00:21]} Qxc1+ {[%emt 0:00:04]} 47. Kh2 {[%emt 0:00:02]} Qf4+ {[%emt 0:00:25]} 48. Kh1 {[%emt 0:00:16]} Qb4 {[%emt 0:00:12]} 49. Qc8 {[%emt 0:00:18]} a4 {[%emt 0:00:08]} 50. Qc1 {[%emt 0:00:10]} a3 {[%emt 0:00:06]} 51. Qc2 {[%emt 0:00:15]} Qb2 {[%emt 0:00:04]} 52. Qd3 {[%emt 0:00:03]} a2 {[%emt 0:00:05]} 0-1

[Event "Marshall CC FIDE Premier April 2024"]
[Site "New York"]
[Date "2024.04.13"]
[Round "1.4"]
[White "Sarkar, Justin"]
[Black "Rosenthal, Max Manuel"]
[Result "1-0"]
[ECO "C65"]
[WhiteElo "2279"]
[BlackElo "1991"]
[Annotator "RC"]
[PlyCount "87"]
[EventDate "2024.02.02"]
[EventType "swiss"]
[EventCountry "USA"]
[SourceTitle "playchess.com"]
[Source "ChessBase"]
[SourceQuality "1"]
[TimeControl "5400+30"]

1. e4 {[%emt 0:00:04]} e5 {[%emt 0:00:07]} 2. Nf3 {[%emt 0:00:12]} Nc6 {[%emt 0:00:06]} 3. Bb5 {[%emt 0:01:34]} Nf6 {[%emt 0:00:04]} 4. d3 {[%emt 0:00:55]} Bc5 {[%emt 0:00:05]} 5. Bxc6 {[%emt 0:00:35]} dxc6 {[%emt 0:00:13]} 6. Nbd2 {[%emt 0:00:44]} Qe7 {[%emt 0:02:24]} 7. Nc4 {[%emt 0:00:23]} Nd7 {[%emt 0:02:00]} 8. O-O {[%emt 0:03:41]} O-O {[%emt 0:00:23]} 9. Bd2 {[%emt 0:06:35]} Re8 {[%emt 0:10:54]} 10. a4 {[%emt 0:02:22]} b5 {[%emt 0:14:14]} 11. Na5 {[%emt 0:03:06]} Qf6 {[%emt 0:03:11]} 12. Bg5 {[%emt 0:05:39]} Qg6 {[%emt 0:04:04]} 13. Qd2 {[%emt 0:07:44]} Nb6 {[%emt 0:10:38]} 14. Nb3 {[%emt 0:10:06]} Bd6 {[%emt 0:02:27]} 15. a5 {[%emt 0:15:57]} Na4 {[%emt 0:01:10]} 16. Be3 {[%emt 0:00:24]} Be6 {[%emt 0:05:07]} 17. Ng5 {[%emt 0:01:02]} Bxb3 {[%emt 0:03:31]} 18. cxb3 {[%emt 0:00:05]} Nc5 {[%emt 0:00:15]} 19. Qc3 {[%emt 0:03:32]} h6 {[%emt 0:11:54]} 20. Nf3 {[%emt 0:03:25]} b4 {[%emt 0:00:06]} 21. Qc2 {[%emt 0:01:12]} Nd7 {[%emt 0:03:23]} 22. Qxc6 {[%emt 0:00:47]} Qe6 {[%emt 0:01:19]} 23. Rfc1 {[%emt 0:03:15]} f5 {[%emt 0:02:34]} 24. exf5 {[%emt 0:05:53]} Qxf5 {[%emt 0:00:12]} 25. Nd2 {[%emt 0:00:31]} Nf6 {[%emt 0:01:55]} 26. Ne4 {[%emt 0:00:13]} Ng4 {[%emt 0:01:59]} 27. Bxa7 {[%emt 0:06:06]} Qf4 {[%emt 0:02:33]} 28. g3 {[%emt 0:00:35]} Qf5 {[%emt 0:00:12]} 29. h3 {[%emt 0:06:39]} Nf6 {[%emt 0:01:05]} 30. Be3 {[%emt 0:04:38]} Qxh3 {[%emt 0:00:34]} 31. Nxf6+ {[%emt 0:01:40]} gxf6 {[%emt 0:00:09]} 32. Rc4 {[%emt 0:00:41]} Qe6 {[%emt 0:01:17]} 33. Rh4 {[%emt 0:03:27]} Bf8 {[%emt 0:00:56]} 34. Qh1 {[%emt 0:02:22]} Qxb3 {[%emt 0:03:36]} 35. Bxh6 {[%emt 0:00:35]} Qxd3 {[%emt 0:04:32]} 36. Rg4+ {[%emt 0:00:24]} Kf7 {[%emt 0:00:34]} 37. Qh5+ {[%emt 0:00:24]} Ke6 {[%emt 0:00:14]} 38. Bxf8 {[%emt 0:00:21]} Rxf8 {[%emt 0:00:11]} 39. Rg7 {[%emt 0:00:23]} Qe4 {[%emt 0:03:08]} 40. Rc1 {[%emt 0:00:13]} Rae8 {[%emt 0:02:13]} 41. Qh3+ {[%emt 0:01:41]} f5 {[%emt 0:01:14]} 42. Rg6+ {[%emt 0:00:05]} Kd7 {[%emt 0:00:08]} 43. Qh7+ {[%emt 0:00:14]} Re7 {[%emt 0:00:09]} 44. Rxc7+ {[%emt 0:00:05]} 1-0

[Event "Marshall CC FIDE Premier April 2024"]
[Site "New York"]
[Date "2024.04.13"]
[Round "1.5"]
[White "Meduri, Aakaash"]
[Black "Prestia, Paris"]
[Result "1-0"]
[ECO "E62"]
[WhiteElo "1962"]
[BlackElo "2059"]
[Annotator "RC"]
[PlyCount "117"]
[EventDate "2024.02.02"]
[EventType "swiss"]
[EventCountry "USA"]
[SourceTitle "playchess.com"]
[Source "ChessBase"]
[SourceQuality "1"]
[TimeControl "5400+30"]

1. c4 {[%emt 0:01:22]} Nf6 {[%emt 0:00:06]} 2. g3 {[%emt 0:00:15]} g6 {[%emt 0:00:06]} 3. Bg2 {[%emt 0:00:13]} Bg7 {[%emt 0:00:07]} 4. Nc3 {[%emt 0:00:11]} O-O {[%emt 0:00:21]} 5. d4 {[%emt 0:00:12]} d6 {[%emt 0:00:31]} 6. h3 {[%emt 0:00:15]} c6 {[%emt 0:00:06]} 7. Nf3 {[%emt 0:00:23]} Bf5 {[%emt 0:00:37]} 8. g4 {[%emt 0:03:53]} Be6 {[%emt 0:00:22]} 9. d5 {[%emt 0:00:53]} cxd5 {[%emt 0:00:10]} 10. cxd5 {[%emt 0:00:09]} Bd7 {[%emt 0:00:05]} 11. O-O {[%emt 0:03:54]} Qb6 {[%emt 0:28:56]} 12. e4 {[%emt 0:07:05]} Rc8 {[%emt 0:01:27]} 13. Qe2 {[%emt 0:05:34]} Qa6 {[%emt 0:12:20]} 14. Qe3 {[%emt 0:04:52]} Be8 {[%emt 0:01:41]} 15. Nd4 {[%emt 0:03:02]} Nfd7 {[%emt 0:03:15]} 16. Rd1 {[%emt 0:02:50]} Nc5 {[%emt 0:03:57]} 17. Rb1 {[%emt 0:15:20]} Na4 {[%emt 0:04:37]} 18. Nce2 {[%emt 0:03:58]} Qb6 {[%emt 0:06:23]} 19. b3 {[%emt 0:01:38]} a5 {[%emt 0:01:46]} 20. Bd2 {[%emt 0:01:55]} Nc5 {[%emt 0:00:05]} 21. Bc3 {[%emt 0:01:17]} Nba6 {[%emt 0:03:13]} 22. Ng3 {[%emt 0:02:08]} Nd7 {[%emt 0:01:40]} 23. Rbc1 {[%emt 0:05:41]} Nb4 {[%emt 0:01:29]} 24. Qd2 {[%emt 0:04:25]} Ne5 {[%emt 0:14:47]} 25. Nge2 {[%emt 0:08:37]} Qa6 {[%emt 0:09:49]} 26. a3 {[%emt 0:04:30]} Nbd3 {[%emt 0:00:09]} 27. Rb1 {[%emt 0:00:46]} Nc5 {[%emt 0:00:15]} 28. f4 {[%emt 0:01:01]} Ned7 {[%emt 0:00:02]} 29. Kh1 {[%emt 0:02:42]} Nb6 {[%emt 0:04:24]} 30. a4 {[%emt 0:02:48]} Nbd7 {[%emt 0:00:03]} 31. Ng3 {[%emt 0:00:45]} Qb6 {[%emt 0:02:27]} 32. Qb2 {[%emt 0:02:14]} Qa6 {[%emt 0:00:11]} 33. Bf1 {[%emt 0:01:45]} Qb6 {[%emt 0:00:02]} 34. g5 {[%emt 0:01:01]} Na6 {[%emt 0:00:20]} 35. Rbc1 {[%emt 0:00:54]} Nb4 {[%emt 0:00:02]} 36. Ndf5 {[%emt 0:02:00]} Bf8 {[%emt 0:00:01]} 37. Bd4 {[%emt 0:03:34]} Qd8 {[%emt 0:00:02]} 38. Bg7 {[%emt 0:01:31]} f6 {[%emt 0:00:11]} 39. Bxf8 {[%emt 0:00:37]} Kxf8 {[%emt 0:03:55]} 40. Nd4 {[%emt 0:00:26]} Bf7 {[%emt 0:00:00]} 41. Bb5 {[%emt 0:00:50]} Rxc1 {[%emt 0:00:00]} 42. Rxc1 {[%emt 0:00:21]} Nc5 {[%emt 0:00:00]} 43. Qe2 {[%emt 0:01:09]} Rc8 {[%emt 0:00:00]} 44. Rf1 {[%emt 0:00:19]} Kg8 {[%emt 0:00:23]} 45. Bc4 {[%emt 0:01:37]} Nd7 {[%emt 0:01:35]} 46. h4 {[%emt 0:00:29]} Nb6 {[%emt 0:00:07]} 47. f5 {[%emt 0:01:10]} Nxc4 {[%emt 0:00:04]} 48. bxc4 {[%emt 0:00:09]} Qb6 {[%emt 0:00:24]} 49. fxg6 {[%emt 0:00:48]} hxg6 {[%emt 0:00:10]} 50. Nb5 {[%emt 0:00:21]} fxg5 {[%emt 0:00:58]} 51. Qf3 {[%emt 0:01:10]} Rf8 {[%emt 0:00:33]} 52. h5 {[%emt 0:00:14]} gxh5 {[%emt 0:00:13]} 53. Nf5 {[%emt 0:00:22]} Kh7 {[%emt 0:01:54]} 54. Nxe7 {[%emt 0:00:42]} Nc2 {[%emt 0:00:37]} 55. Qf5+ {[%emt 0:00:47]} Kh6 {[%emt 0:00:11]} 56. Qf6+ {[%emt 0:00:31]} Kh7 {[%emt 0:00:04]} 57. Qxg5 {[%emt 0:00:41]} Qe3 {[%emt 0:00:37]} 58. Rxf7+ {[%emt 0:00:22]} Rxf7 {[%emt 0:00:02]} 59. Qg8+ {[%emt 0:00:11]} 1-0